bitfinex-derivatives/quotes_BNBF0:USTF0_20241230
["timestamp","ask_amount","ask_price","bid_price","bid_amount"]
[1735568294460,0.26539594,694.1,693.68,0.48]
[1735568294665,0.26539594,694.09,693.68,0.48]
[1735568294867,0.26539594,694.08,693.68,0.48]
[1735568295065,0.26539594,694.07,693.68,0.48]
[1735568295266,0.26539594,694.06,693.68,0.48]
[1735568295467,0.28811801,694.16,693.68,0.48]
[1735568295666,0.2653977,694.15,693.68,0.48]
[1735568295870,0.2653977,694.15,693.13,1.07499236]
[1735568296869,0.2653977,694.15,692.94,1.07499236]
[1735568296870,0.2653977,694.15,693.04,1.07499236]
[1735568297868,0.2653977,694.15,692.94,1.07499236]
[1735568298062,0.28811801,694.16,692.94,1.07499236]
[1735568298267,0.26544284,694.15,692.94,1.07499236]
[1735568300471,0.26544284,694.15,692.92,1.07499236]
[1735568300672,0.26543754,694.14,692.92,1.07499236]
[1735568301265,0.26543754,694.13,692.92,1.07499236]
[1735568301466,0.26543754,694.12,692.92,1.07499236]
[1735568301669,0.26543754,694.11,692.89,1.07499236]
[1735568301866,0.26543754,694.1,692.89,1.07499236]
[1735568302067,0.26543754,694.09,692.89,1.07499236]
[1735568302371,0.28811801,694.16,692.89,1.07499236]
[1735568302372,0.26543754,694.08,692.89,1.07499236]
[1735568302572,0.26543754,694.07,692.89,1.07499236]
[1735568302767,0.26543754,694.07,692.68,1.07499236]
[1735568302768,0.26543754,694.06,692.83,1.07499236]
[1735568302970,0.26543754,694.05,692.83,1.07499236]
[1735568303170,0.28811801,694.16,692.83,1.07499236]
[1735568303366,0.26546117,694.15,692.83,1.07499236]
[1735568303773,0.26546117,694.14,692.83,1.07499236]
[1735568303975,0.26546117,694.14,692.2,2.19477607]
[1735568303976,0.26546117,694.13,692.77,1.07499236]
[1735568304166,0.55359578,694.12,692.77,1.07499236]
[1735568304371,0.26546117,694.11,692.77,1.07499236]
[1735568304668,0.28814707,694.09,692.77,1.07499236]
[1735568304868,0.26546117,694.08,692.77,1.07499236]
[1735568305073,0.28814707,694.09,692.77,1.07499236]
[1735568305074,0.26546117,694.07,692.77,1.07499236]
[1735568305268,0.28814707,694.09,692.77,1.07499236]
[1735568305269,0.26546117,694.06,692.77,1.07499236]
[1735568305474,0.28814707,694.09,692.77,1.07499236]
[1735568305475,0.26546117,694.05,692.77,1.07499236]
[1735568305675,0.26546117,694.04,692.77,1.07499236]
[1735568305869,0.26549058,694.03,692.77,1.07499236]
[1735568306068,0.55366671,694.02,692.71,1.07499236]
[1735568306274,0.26549058,694.01,692.71,1.07499236]
[1735568306777,0.2654952,694.0,692.71,1.07499236]
[1735568307072,0.2654952,693.99,692.71,1.07499236]
[1735568307275,0.2654952,693.98,692.71,1.07499236]
[1735568307472,0.2654952,693.97,692.71,1.07499236]
[1735568307677,0.2654952,693.96,692.66,1.07499236]
[1735568307873,0.2654952,693.95,692.66,1.07499236]
[1735568308074,0.2654952,693.94,692.66,1.07499236]
[1735568308270,0.2654952,693.93,692.66,1.07499236]
[1735568308576,0.26551451,693.92,692.66,1.07499236]
[1735568308788,0.26551451,693.91,692.66,1.07499236]
[1735568309077,0.26551451,693.91,692.06,2.19477607]
[1735568309078,0.28817613,694.02,692.55,1.07499236]
[1735568309276,0.26552393,694.01,692.55,1.07499236]
[1735568310177,0.26552393,694.01,692.48,1.07499236]
[1735568311077,0.26552393,694.01,692.47,1.07499236]
[1735568311277,0.26551837,694.0,692.47,1.07499236]
[1735568311477,0.26551837,694.01,692.47,1.07499236]
[1735568311677,0.26551837,694.0,692.47,1.07499236]
[1735568311882,0.26551837,693.99,692.52,1.07499236]
[1735568312078,0.26551837,693.98,692.52,1.07499236]
[1735568312279,0.26551837,693.97,692.52,1.07499236]
[1735568312480,0.26551837,693.96,692.52,1.07499236]
[1735568312679,0.26551837,693.96,691.86,2.19477607]
[1735568312680,0.26551837,693.95,692.55,1.07499236]
[1735568312876,0.26551837,693.94,692.55,1.07499236]
[1735568313076,0.26551837,693.93,692.55,1.07499236]
[1735568313276,0.26551837,693.92,692.55,1.07499236]
[1735568313478,0.26551837,693.91,692.55,1.07499236]
[1735568313678,0.26551837,693.9,692.55,1.07499236]
[1735568313877,0.26551837,693.9,691.9,2.19477607]
[1735568313878,0.26551837,694.01,692.58,1.07499236]
[1735568314084,0.26551837,694.0,692.58,1.07499236]
[1735568314276,0.26551837,693.99,692.58,1.07499236]
[1735568314478,0.26551837,693.98,692.58,1.07499236]
[1735568314675,0.26551837,693.97,692.58,1.07499236]
[1735568314882,0.26551837,693.96,692.74,1.07499236]
[1735568315073,0.26551837,693.95,692.74,1.07499236]
[1735568315278,0.26551837,693.94,692.74,1.07499236]
[1735568315480,0.26551837,693.93,692.74,1.07499236]
[1735568315682,0.26551837,693.92,692.74,1.07499236]
[1735568315883,0.26551837,693.91,692.68,1.07499236]
[1735568316083,0.26551837,693.9,692.68,1.07499236]
[1735568316482,0.26552702,693.89,692.68,1.07499236]
[1735568316680,0.26552702,693.88,692.68,1.07499236]
[1735568316886,0.28817613,694.02,692.68,1.07499236]
[1735568317084,0.28817613,694.02,692.53,1.07499236]
[1735568317085,0.26552969,694.01,692.53,1.07499236]
[1735568317285,0.26552969,694.0,692.53,1.07499236]
[1735568317486,0.26552969,693.99,692.53,1.07499236]
[1735568317686,0.26552969,693.98,692.53,1.07499236]
[1735568317887,0.26552969,693.97,692.53,1.07499236]
[1735568318090,0.26552969,693.96,692.54,1.07499236]
[1735568318281,0.26552969,693.95,692.54,1.07499236]
[1735568318485,0.28817613,694.02,692.54,1.07499236]
[1735568318486,0.26552969,693.94,692.54,1.07499236]
[1735568318693,0.26552969,693.93,692.54,1.07499236]
[1735568318990,0.26552071,693.92,692.55,1.07499236]
[1735568319288,0.26552071,693.91,692.55,1.07499236]
[1735568319490,0.26552071,693.9,692.55,1.07499236]
[1735568319690,0.26552071,693.89,692.55,1.07499236]
[1735568319989,0.26552071,693.88,692.6,1.07499236]
[1735568320287,0.26552071,693.87,692.6,1.07499236]
[1735568320489,0.26552071,693.86,692.6,1.07499236]
[1735568320692,0.26552071,693.85,692.6,1.07499236]
[1735568320883,0.26552071,693.84,692.6,1.07499236]
[1735568321086,0.26552071,693.83,692.6,1.07499236]
[1735568321288,0.26552071,693.82,692.6,1.07499236]
[1735568321489,0.26547177,693.81,692.63,1.07499236]
[1735568321691,0.26547177,693.8,692.63,1.07499236]
[1735568321891,0.26546633,693.79,692.63,1.07499236]
[1735568322091,0.26546633,693.78,692.63,1.07499236]
[1735568322292,0.26546633,693.77,692.84,1.07499236]
[1735568322489,0.26546633,693.76,692.84,1.07499236]
[1735568322688,0.26546633,693.75,692.84,1.07499236]
[1735568322887,0.26546633,693.74,692.84,1.07499236]
[1735568323091,0.26546633,693.73,692.84,1.07499236]
[1735568323286,0.28817613,694.02,692.84,1.07499236]
[1735568323489,0.2654443,694.01,692.92,1.07499236]
[1735568323887,0.28817613,694.02,692.92,1.07499236]
[1735568324088,0.26544451,694.01,692.92,1.07499236]
[1735568324691,0.26544227,694.0,692.92,1.07499236]
[1735568324887,0.26544227,693.99,692.94,1.07499236]
[1735568325091,0.26544227,693.98,692.94,1.07499236]
[1735568325291,0.26544227,693.97,692.94,1.07499236]
[1735568325490,0.26544227,693.96,692.94,1.07499236]
[1735568325693,0.26544227,693.95,692.95,1.07499236]
[1735568325995,0.26544227,693.94,692.95,1.07499236]
[1735568326195,0.26544227,693.93,692.95,1.07499236]
[1735568326396,0.28817613,694.02,692.95,1.07499236]
[1735568326587,0.26540966,694.01,692.95,1.07499236]
[1735568326994,0.26540966,694.01,692.99,1.07499236]
[1735568328094,0.26540966,694.01,692.98,1.07499236]
[1735568330595,0.26540966,694.01,692.99,1.07499236]
[1735568331791,0.28817613,694.02,692.99,1.07499236]
[1735568331992,0.26540837,694.01,692.99,1.07499236]
[1735568332194,0.26540837,694.01,692.97,1.07499236]
[1735568333802,0.26540837,694.01,692.28,2.19477607]
[1735568333803,0.26540837,694.01,692.86,1.07499236]
[1735568334399,0.28817613,694.02,692.86,1.07499236]
[1735568334598,0.26549616,694.01,692.76,1.07499236]
[1735568335697,0.26549616,694.01,692.85,1.07499236]
[1735568336699,0.26549616,694.01,692.83,1.07499236]
[1735568337093,0.26548562,694.0,692.83,1.07499236]
[1735568337290,0.26548562,693.99,692.83,1.07499236]
[1735568337493,0.26548562,693.98,692.83,1.07499236]
[1735568337698,0.26548562,693.97,692.83,1.07499236]
[1735568337900,0.26548562,693.96,692.82,1.07499236]
[1735568338102,0.26548562,693.95,692.82,1.07499236]
[1735568338394,0.26548562,693.94,692.82,1.07499236]
[1735568338599,0.26548562,693.93,692.82,1.07499236]
[1735568338896,0.26548562,693.92,692.49,1.07499236]
[1735568339194,0.26548562,693.91,692.49,1.07499236]
[1735568339400,0.26548562,693.9,692.49,1.07499236]
[1735568339601,0.26553455,693.89,692.49,1.07499236]
[1735568339800,0.26553455,693.88,692.49,1.07499236]
[1735568340002,0.26553455,694.01,692.49,1.07499236]
[1735568340201,0.28817613,694.02,692.46,1.07499236]
[1735568340202,0.26553421,694.0,692.46,1.07499236]
[1735568340402,0.28819274,693.98,692.46,1.07499236]
[1735568340602,0.26553421,693.97,692.46,1.07499236]
[1735568341195,0.26553421,693.97,692.47,1.07499236]
[1735568341402,0.26544353,693.96,692.47,1.07499236]
[1735568341598,0.26544353,693.97,692.47,1.07499236]
[1735568341799,0.26544353,693.96,692.47,1.07499236]
[1735568341999,0.28819274,693.98,692.47,1.07499236]
[1735568342198,0.28819274,693.98,692.85,1.07499236]
[1735568343103,0.26544026,693.97,692.85,1.07499236]
[1735568343302,0.26544026,693.97,692.81,1.07499236]
[1735568343497,0.28819274,693.98,692.81,1.07499236]
[1735568343697,0.26544231,693.97,692.81,1.07499236]
[1735568343898,0.28819274,693.98,692.81,1.07499236]
[1735568344197,0.28819274,693.98,692.8,1.07499236]
[1735568345203,0.28819274,693.98,692.82,1.07499236]
[1735568348405,0.28819274,693.98,692.05,2.19477607]
[1735568348406,0.28819274,693.98,692.88,1.07499236]
[1735568349806,0.28819274,693.98,692.9,1.07499236]
[1735568350606,0.26552318,693.97,692.9,1.07499236]
[1735568350806,0.26552318,693.97,692.91,1.07499236]
[1735568350807,0.2882052,693.95,692.91,1.07499236]
[1735568351705,0.2882052,693.95,692.47,1.07499236]
[1735568352702,0.2882052,693.95,692.45,1.07499236]
[1735568353707,0.2882052,693.95,692.51,1.07499236]
[1735568354503,0.2882052,693.95,692.47,1.07499236]
[1735568355509,0.26550029,693.94,692.48,1.07499236]
[1735568356605,0.26550029,693.94,692.67,1.07499236]
[1735568357311,0.2654791,693.93,692.67,1.07499236]
[1735568357511,0.2654791,693.92,692.67,1.07499236]
[1735568357812,0.2882052,693.95,692.08,1.28999083]
[1735568357813,0.2654791,693.91,692.7,1.07499236]
[1735568358007,0.2882052,693.95,692.7,1.07499236]
[1735568358204,0.26546652,693.94,692.7,1.07499236]
[1735568358809,0.26546652,693.94,692.75,1.07499236]
[1735568359411,0.28821766,693.92,692.75,1.07499236]
[1735568359608,0.26546652,693.91,692.75,1.07499236]
[1735568359812,0.26545034,693.91,692.83,1.07499236]
[1735568360008,0.28823012,693.89,692.83,1.07499236]
[1735568360917,0.28823012,693.89,692.84,1.07499236]
[1735568361512,0.26544807,693.88,692.84,1.07499236]
[1735568361816,0.26544807,693.88,692.85,1.07499236]
[1735568362418,1.06663272,694.64,692.85,1.07499236]
[1735568362419,0.55369851,693.87,692.85,1.07499236]
[1735568362619,0.55370266,693.86,692.85,1.07499236]
[1735568362819,0.28824258,693.86,692.83,1.07499236]
[1735568363715,0.28824258,693.86,692.86,1.07499236]
[1735568364120,0.26544857,693.85,692.86,1.07499236]
[1735568364519,0.26544857,693.85,692.89,1.07499236]
[1735568365021,0.28824258,693.86,692.89,1.07499236]
[1735568365220,0.28825089,693.84,692.89,1.07499236]
[1735568365433,0.26544824,693.83,692.9,1.07499236]
[1735568366317,0.26544824,693.83,692.95,1.07499236]
[1735568366318,0.2882592,693.82,692.95,1.07499236]
[1735568367520,0.2882592,693.82,692.92,1.07499236]
[1735568368644,0.2882592,693.82,693.0,1.07499236]
[1735568369324,0.2882592,693.82,693.12,1.07499236]
[1735568370922,0.2882592,693.82,693.11,1.07499236]
[1735568371821,0.2882592,693.82,692.87,1.07499236]
[1735568371822,0.2882592,693.82,693.03,1.07499236]
[1735568372116,1.06663272,695.12,693.03,1.07499236]
[1735568372321,0.2877615,695.02,693.03,1.07499236]
[1735568372524,0.26528605,695.01,693.03,1.07499236]
[1735568372725,0.2877615,695.02,693.12,1.07499236]
[1735568372922,0.26528978,695.01,693.12,1.07499236]
[1735568373724,0.26528978,695.01,692.86,1.07499236]
[1735568373725,0.26528978,695.01,692.93,1.07499236]
[1735568375024,0.26528978,695.01,692.92,1.07499236]
[1735568375323,0.26531382,695.0,692.92,1.07499236]
[1735568375522,0.26531382,694.99,692.92,1.07499236]
[1735568375722,0.26531382,694.98,692.92,1.07499236]
[1735568375924,0.26531382,695.01,692.92,1.07499236]
[1735568376224,0.26531382,695.0,692.87,1.07499236]
[1735568376424,0.26531382,694.99,692.87,1.07499236]
[1735568376726,0.26531382,694.98,692.91,1.07499236]
[1735568376925,0.26531382,694.97,692.91,1.07499236]
[1735568377123,0.2877615,695.02,692.91,1.07499236]
[1735568377124,0.26531382,694.96,692.91,1.07499236]
[1735568377325,0.26531382,694.95,692.91,1.07499236]
[1735568377525,0.26531382,694.94,692.91,1.07499236]
[1735568377724,0.26531382,694.93,692.91,1.07499236]
[1735568377920,0.26529216,694.92,692.89,1.07499236]
[1735568378126,0.26529216,694.91,692.89,1.07499236]
[1735568378328,0.26529216,694.9,692.89,1.07499236]
[1735568378625,0.26529216,694.89,692.89,1.07499236]
[1735568378824,0.26529216,694.88,692.89,1.07499236]
[1735568379127,0.26529216,694.87,692.86,1.07499236]
[1735568379327,0.2877615,695.02,692.86,1.07499236]
[1735568379526,0.26528734,695.01,692.86,1.07499236]
[1735568380131,0.26528734,695.01,692.82,1.07499236]
[1735568380526,0.2877615,695.02,692.82,1.07499236]
[1735568380722,0.26529414,695.01,692.82,1.07499236]
[1735568381327,0.26529414,695.01,692.8,1.07499236]
[1735568382330,0.26529414,695.01,692.89,1.07499236]
[1735568382525,0.26529414,695.0,692.89,1.07499236]
[1735568382723,0.26529414,694.99,692.89,1.07499236]
[1735568382927,0.2877615,695.02,692.89,1.07499236]
[1735568382928,0.26529414,694.98,692.89,1.07499236]
[1735568383229,0.26527821,694.97,692.89,1.07499236]
[1735568383429,0.2877615,695.02,692.94,1.07499236]
[1735568383430,0.26527821,694.96,692.94,1.07499236]
[1735568383624,0.26527821,694.95,692.94,1.07499236]
[1735568383833,0.26527821,694.94,692.94,1.07499236]
[1735568384131,0.26527821,694.93,692.94,1.07499236]
[1735568384426,0.2877615,695.02,692.88,1.07499236]
[1735568384427,0.26527821,694.92,692.88,1.07499236]
[1735568384623,0.2877615,695.02,692.88,1.07499236]
[1735568384624,0.26527821,694.91,692.88,1.07499236]
[1735568384829,0.26527821,694.9,692.88,1.07499236]
[1735568385130,0.26527821,694.89,692.85,1.07499236]
[1735568385329,0.26527821,694.88,692.85,1.07499236]
[1735568385523,0.2877615,695.02,692.85,1.07499236]
[1735568385727,0.26527838,695.01,692.85,1.07499236]
[1735568385927,0.26527838,695.0,692.85,1.07499236]
[1735568386125,0.26527838,694.99,692.85,1.07499236]
[1735568386324,0.26528283,695.01,692.92,1.07499236]
[1735568386527,0.26528283,695.0,692.92,1.07499236]
[1735568386840,0.26528283,694.99,692.92,1.07499236]
[1735568387030,0.26528283,694.98,692.92,1.07499236]
[1735568387230,0.2877615,695.02,692.64,1.07499236]
[1735568387231,0.26528283,694.97,692.93,1.07499236]
[1735568387532,0.26528283,694.96,692.93,1.07499236]
[1735568387730,0.26528283,694.95,692.93,1.07499236]
[1735568387934,0.26528283,694.94,692.93,1.07499236]
[1735568388129,0.26528283,694.93,692.93,1.07499236]
[1735568388325,0.2877615,695.02,692.93,1.07499236]
[1735568388532,0.26526944,695.01,692.93,1.07499236]
[1735568388732,0.26526944,695.0,692.94,1.07499236]
[1735568388933,0.26526944,694.99,692.94,1.07499236]
[1735568389127,0.26526944,694.98,692.94,1.07499236]
[1735568389330,0.26526944,694.97,692.94,1.07499236]
[1735568389533,0.26526944,694.96,692.94,1.07499236]
[1735568389728,0.26526944,694.95,692.94,1.07499236]
[1735568389925,0.2877615,695.02,692.94,1.07499236]
[1735568389926,0.26526944,694.94,692.94,1.07499236]
[1735568390130,0.26526944,694.93,693.0,1.07499236]
[1735568390434,0.26526944,694.92,693.0,1.07499236]
[1735568390628,0.26526944,694.91,693.0,1.07499236]
[1735568390827,0.2877615,695.02,693.0,1.07499236]
[1735568391030,0.26527687,695.01,693.04,1.07499236]
[1735568391232,0.26527687,695.0,693.04,1.07499236]
[1735568391434,0.26527687,694.99,693.04,1.07499236]
[1735568391734,0.26527687,694.98,693.04,1.07499236]
[1735568392034,0.26527687,694.97,693.09,1.07499236]
[1735568392229,0.26527687,694.96,693.09,1.07499236]
[1735568392425,0.2877615,695.02,693.09,1.07499236]
[1735568392426,0.26527687,694.95,693.09,1.07499236]
[1735568392631,0.2877615,695.02,693.09,1.07499236]
[1735568392632,0.26527687,694.94,693.09,1.07499236]
[1735568392827,0.26527687,694.93,693.09,1.07499236]
[1735568393029,0.26527687,694.92,692.96,1.07499236]
[1735568393232,0.26527687,694.91,692.96,1.07499236]
[1735568393435,0.2877615,695.02,692.96,1.07499236]
[1735568393634,0.26520664,695.01,692.96,1.07499236]
[1735568394130,0.26519159,695.0,692.96,1.07499236]
[1735568394334,0.2877615,695.02,692.96,1.07499236]
[1735568394335,0.26519159,695.01,692.96,1.07499236]
[1735568394536,0.26519159,695.0,693.07,1.07499236]
[1735568394835,0.26519159,694.99,693.07,1.07499236]
[1735568395131,0.26519159,694.98,693.07,1.07499236]
[1735568395335,0.26519159,694.97,693.07,1.07499236]
[1735568395530,0.26519159,694.96,693.07,1.07499236]
[1735568395736,0.26519159,694.95,693.07,1.07499236]
[1735568396036,0.2877615,695.02,693.13,1.07499236]
[1735568396232,0.26522031,695.01,693.13,1.07499236]
[1735568396836,0.26522031,695.01,693.05,1.07499236]
[1735568397633,0.2877615,695.02,693.05,1.07499236]
[1735568397634,0.26523111,695.0,693.05,1.07499236]
[1735568397829,0.26523111,694.99,693.05,1.07499236]
[1735568398034,0.26523111,694.98,693.05,1.07499236]
[1735568398230,0.26523111,694.97,693.05,1.07499236]
[1735568398430,0.26523111,694.96,693.05,1.07499236]
[1735568398734,0.26524522,694.95,693.05,1.07499236]
[1735568398937,0.26524522,694.94,693.11,1.07499236]
[1735568399235,0.28780291,694.92,693.11,1.07499236]
[1735568399536,0.26524522,694.91,693.11,1.07499236]
[1735568399738,0.28781533,694.89,693.11,1.07499236]
[1735568399936,0.28781533,694.89,692.16,2.19477607]
[1735568399937,0.26524522,694.88,693.25,1.07499236]
[1735568400943,0.26524522,694.88,692.52,2.19477607]
[1735568400944,0.26523903,694.87,693.29,1.07499236]
[1735568401136,0.28781533,694.89,693.29,1.07499236]
[1735568401137,0.26523903,694.88,693.29,1.07499236]
[1735568401436,0.26523903,694.87,693.29,1.07499236]
[1735568401630,0.28781533,694.89,693.29,1.07499236]
[1735568401631,0.26520932,694.86,693.29,1.07499236]
[1735568401837,0.26520932,694.85,693.29,1.07499236]
[1735568402036,0.26520932,694.84,693.46,1.07499236]
[1735568402236,0.26520932,694.83,693.46,1.07499236]
[1735568402436,0.28781533,694.89,693.46,1.07499236]
[1735568402437,0.26520932,694.82,693.46,1.07499236]
[1735568402738,0.26520932,694.81,693.46,1.07499236]
[1735568402935,0.26520932,694.8,693.46,1.07499236]
[1735568403235,0.26520932,694.8,693.19,1.07499236]
[1735568403236,0.26519082,694.79,693.48,1.07499236]
[1735568403431,0.28781533,694.89,693.48,1.07499236]
[1735568403432,0.26519082,694.78,693.48,1.07499236]
[1735568403633,0.26519082,694.77,693.48,1.07499236]
[1735568403839,0.26519082,694.76,693.48,1.07499236]
[1735568404139,0.26519082,694.75,693.48,1.07499236]
[1735568404437,0.26519082,694.74,693.5,1.07499236]
[1735568404637,0.26519082,694.73,693.5,1.07499236]
[1735568404936,0.26519082,694.72,693.5,1.07499236]
[1735568405132,0.26519082,694.71,693.5,1.07499236]
[1735568405338,0.26519082,694.7,693.5,1.07499236]
[1735568405539,0.26519082,694.69,693.51,1.07499236]
[1735568405741,0.26518382,694.68,693.51,1.07499236]
[1735568405941,0.26518382,694.67,693.51,1.07499236]
[1735568406140,0.55309445,694.66,693.51,1.07499236]
[1735568406441,0.28791892,694.64,693.51,1.07499236]
[1735568406643,0.26518382,694.63,693.56,1.07499236]
[1735568407037,0.28793135,694.61,693.56,1.07499236]
[1735568407239,0.26518382,694.6,693.56,1.07499236]
[1735568407636,0.28794379,694.58,693.56,1.07499236]
[1735568407942,0.26518382,694.57,693.55,1.07499236]
[1735568408540,0.28795208,694.56,693.46,1.07499236]
[1735568409644,0.28795208,694.56,693.51,1.07499236]
[1735568410644,0.28795208,694.56,692.71,2.19477607]
[1735568410645,0.28795208,694.56,693.52,1.07499236]
[1735568411647,0.28795208,694.56,693.48,1.07499236]
[1735568412840,0.26521078,694.55,693.49,1.07499236]
[1735568413246,0.28796452,694.53,693.49,1.07499236]
[1735568413843,0.28796452,694.53,692.68,2.19477607]
[1735568413844,0.28796452,694.53,693.42,1.07499236]
[1735568414447,0.28796452,694.53,692.77,1.28999083]
[1735568414448,0.28796452,694.53,693.43,1.07499236]
[1735568415447,0.28796452,694.53,692.63,2.19477607]
[1735568415448,0.26522556,694.52,693.42,1.07499236]
[1735568416147,0.265229,694.51,693.42,1.07499236]
[1735568416348,0.265229,694.5,693.42,1.07499236]
[1735568416549,0.28798525,694.48,693.49,1.07499236]
[1735568416947,0.26524004,694.47,693.49,1.07499236]
[1735568417744,0.26524004,694.47,693.47,1.07499236]
[1735568419043,0.26524004,694.47,693.36,1.07499236]
[1735568420349,0.26524004,694.47,693.3,1.07499236]
[1735568421346,0.26529534,694.46,693.3,1.07499236]
[1735568421549,0.28798525,694.48,693.28,1.07499236]
[1735568421550,0.26529534,694.45,693.28,1.07499236]
[1735568421849,0.26529026,694.44,693.28,1.07499236]
[1735568422044,0.26529026,694.43,693.28,1.07499236]
[1735568422247,0.26529026,694.42,693.28,1.07499236]
[1735568422447,0.26529026,694.41,693.28,1.07499236]
[1735568422649,0.26529026,694.4,693.28,1.07499236]
[1735568422949,0.26529026,694.39,693.28,1.07499236]
[1735568423147,0.26529026,694.38,693.28,1.07499236]
[1735568423343,0.26529026,694.37,693.23,1.07499236]
[1735568423545,0.26529026,694.36,693.23,1.07499236]
[1735568423848,0.28798525,694.48,693.23,1.07499236]
[1735568423849,0.26528978,694.35,693.23,1.07499236]
[1735568424147,0.26528978,694.34,693.23,1.07499236]
[1735568424345,0.26528978,694.33,693.28,1.07499236]
[1735568424548,0.26528978,694.32,693.28,1.07499236]
[1735568424750,0.26528978,694.31,693.28,1.07499236]
[1735568425045,0.26528701,694.3,693.28,1.07499236]
[1735568425248,0.28798525,694.48,693.28,1.07499236]
[1735568425551,0.26530177,694.47,693.28,1.07499236]
[1735568426746,0.28798525,694.48,693.28,1.07499236]
[1735568426951,0.26529805,694.47,693.28,1.07499236]
[1735568427756,0.26529805,694.47,693.27,1.07499236]
[1735568428252,0.28799769,694.45,693.27,1.07499236]
[1735568428450,0.26529805,694.44,693.27,1.07499236]
[1735568429051,0.28799769,694.45,693.27,1.07499236]
[1735568429252,0.26530599,694.44,693.27,1.07499236]
[1735568429452,0.26530599,694.44,692.67,2.19477607]
[1735568429453,0.26530599,694.44,693.26,1.07499236]
[1735568429653,0.28801013,694.42,693.26,1.07499236]
[1735568429851,0.26530599,694.41,693.26,1.07499236]
[1735568430248,0.28802258,694.39,693.26,1.07499236]
[1735568430450,0.28802258,694.39,692.65,2.19477607]
[1735568430451,0.26530599,694.38,693.24,1.07499236]
[1735568430749,0.28803502,694.36,693.24,1.07499236]
[1735568431055,0.26530599,694.35,693.24,1.07499236]
[1735568431646,0.26530599,694.35,693.26,1.07499236]
[1735568432356,0.26530547,694.34,693.26,1.07499236]
[1735568432545,0.26530547,694.33,693.26,1.07499236]
[1735568432747,0.26530547,694.32,693.26,1.07499236]
[1735568432951,0.26530547,694.31,693.26,1.07499236]
[1735568433148,0.26530547,694.3,693.26,1.07499236]
[1735568433351,0.26530547,694.29,693.26,1.07499236]
[1735568433553,0.26530547,694.28,693.26,1.07499236]
[1735568433752,0.26530547,694.35,693.25,1.07499236]
[1735568433947,0.26530547,694.27,693.25,1.07499236]
[1735568434152,0.26530547,694.26,693.25,1.07499236]
[1735568434354,0.28803502,694.36,693.25,1.07499236]
[1735568434654,0.26528927,694.35,693.25,1.07499236]
[1735568435257,0.26528927,694.35,693.3,1.07499236]
[1735568437353,0.28803502,694.36,693.33,1.07499236]
[1735568437554,0.26524501,694.35,693.33,1.07499236]
[1735568438552,0.26524501,694.35,693.36,1.07499236]
[1735568439154,0.28804332,694.34,693.36,1.07499236]
[1735568439556,0.28804332,694.34,693.37,1.07499236]
[1735568440554,0.26524612,694.33,693.37,1.07499236]
[1735568440756,0.26524612,694.33,693.41,1.07499236]
[1735568441760,0.26524612,694.33,693.45,1.07499236]
[1735568441956,0.26524612,694.33,689.25,6.09660857]
[1735568442156,0.28804332,694.34,691.82,2.71340545]
[1735568442459,0.2652459,694.33,691.83,5.76174226]
[1735568442756,0.2652459,694.33,693.51,1.07817726]
[1735568443959,0.2652459,694.33,693.48,1.07817726]
[1735568444861,0.26525418,694.32,693.47,1.07817726]
[1735568445057,0.26525418,694.31,693.47,1.07817726]
[1735568445255,0.26525418,694.3,693.47,1.07817726]
[1735568445559,0.26525418,694.29,693.47,1.07817726]
[1735568445756,0.26525418,694.28,693.47,1.07817726]
[1735568445962,0.26525418,694.28,692.92,2.20127858]
[1735568445963,0.26525418,694.27,693.52,1.07817726]
[1735568446158,0.26525418,694.26,693.52,1.07817726]
[1735568446360,0.28804332,694.34,693.52,1.07817726]
[1735568446557,0.26525243,694.33,693.52,1.07817726]
[1735568446862,0.26525243,694.33,692.96,2.20127858]
[1735568446863,0.26525243,694.33,693.54,1.07817726]
[1735568447258,0.28804332,694.34,693.54,1.07817726]
[1735568447259,0.26523131,694.32,693.54,1.07817726]
[1735568447457,0.26523131,694.31,693.54,1.07817726]
[1735568447655,0.28804332,694.34,693.54,1.07817726]
[1735568447859,0.26523219,694.33,693.54,1.07817726]
[1735568448063,0.26523219,694.33,693.59,1.07817726]
[1735568449065,0.28804332,694.34,693.59,1.07817726]
[1735568450159,0.28804332,694.34,693.64,1.07817726]
[1735568451059,0.28804332,694.34,693.12,2.20127858]
[1735568451060,0.28804332,694.34,693.63,1.07817726]
[1735568452365,0.28804332,694.34,693.58,1.07817726]
[1735568453164,0.28804332,694.34,693.57,1.07817726]
[1735568454464,0.28804332,694.34,693.33,1.07817726]
[1735568454465,0.28804332,694.34,693.58,1.07817726]
[1735568455366,0.28804332,694.34,693.74,1.07817726]
[1735568456362,0.28804332,694.34,693.72,1.07817726]
[1735568457471,0.28804332,694.34,693.13,2.20127858]
[1735568457472,0.28804332,694.34,693.67,1.07817726]
[1735568458568,0.28804332,694.34,693.61,1.07817726]
[1735568459468,0.28804332,694.34,693.42,1.07817726]
[1735568459469,0.28804332,694.34,693.66,1.07817726]
[1735568460567,0.28804332,694.34,693.2,1.29381271]
[1735568460568,0.28804332,694.34,693.62,1.07817726]
[1735568461369,0.28804332,694.34,693.57,1.07817726]
[1735568462372,0.28804332,694.34,693.4,1.07817726]
[1735568463568,0.28804332,694.34,692.74,1.29381271]
[1735568463569,0.28804332,694.34,693.34,1.07817726]